bitfinex-derivatives/quotes_ETHF0:USTF0_20250504
["timestamp","ask_amount","ask_price","bid_price","bid_amount"]
[1746360006791,1.09415,1827.9,1827.8,21.00630862]
[1746360009595,1.09415,1827.9,1827.8,20.19420862]
[1746360009783,2.72605,1827.9,1827.8,2.4525]
[1746360012798,1.09415,1827.9,1827.8,2.4525]
[1746360015504,1.09415,1827.9,1827.8,17.79418334]
[1746360019503,1.09415,1827.9,1827.8,20.19420862]
[1746360023411,2.79885,1827.9,1827.8,20.19420862]
[1746360026014,2.79885,1827.9,1827.8,2.4525]
[1746360026204,6.48685,1827.9,1827.8,2.4525]
[1746360027211,2.79885,1827.9,1827.8,2.4525]
[1746360030126,6.00665,1827.9,1827.8,2.4525]
[1746360031713,6.00665,1827.9,1827.8,17.79418334]
[1746360035018,1.09421,1827.7,1827.6,0.8695]
[1746360035216,1.09421,1827.7,1827.6,1.6537]
[1746360035416,1.09421,1827.7,1827.6,19.39540862]
[1746360036305,4.30201,1827.7,1827.6,19.39540862]
[1746360037512,1.09418,1827.8,1827.6,19.39540862]
[1746360037809,1.09418,1827.8,1827.7,19.42550862]
[1746360040512,4.30194,1827.9,1827.7,19.42550862]
[1746360040819,4.30194,1827.9,1827.8,20.18490862]
[1746360041717,3.2078,1827.9,1827.8,20.18490862]
[1746360042023,10.04639691,1828.0,1827.8,20.18490862]
[1746360042213,10.04639691,1828.0,1827.9,20.16420862]
[1746360043815,6.54239691,1828.0,1827.9,20.16420862]
[1746360044420,1.09407,1828.0,1827.9,20.16420862]
[1746360046417,4.30182,1828.1,1827.9,20.16420862]
[1746360046624,4.30182,1828.1,1828.0,19.34840862]
[1746360046921,4.30182,1828.1,1828.0,20.20730862]
[1746360052429,3.2078,1828.1,1828.0,20.20730862]
[1746360052726,3.2078,1828.1,1828.0,24.80533862]
[1746360056331,4.30172,1828.2,1828.1,1.09397]
[1746360056524,4.30172,1828.2,1828.1,20.43807862]
[1746360057132,1.09392,1828.2,1828.1,20.43807862]
[1746360057329,4.30172,1828.2,1828.1,20.43807862]
[1746360058031,11.39046691,1828.5,1828.1,20.43807862]
[1746360058230,1.09379,1828.4,1828.3,15.34168334]
[1746360058425,1.09379,1828.4,1828.3,16.94408334]
[1746360058619,1.09379,1828.4,1828.3,19.34410862]
[1746360060726,4.30158,1828.5,1828.3,19.34410862]
[1746360060932,4.30158,1828.5,1828.4,4.10832528]
[1746360061227,4.30158,1828.5,1828.4,2.4961]
[1746360061729,3.2078,1828.5,1828.4,2.4961]
[1746360062529,3.2078,1828.5,1828.4,5.98991528]
[1746360062731,3.2078,1828.5,1828.4,21.33159862]
[1746360064629,4.30144,1828.7,1828.5,1.09373]
[1746360064921,4.30144,1828.7,1828.6,20.27730862]
[1746360065122,3.2078,1828.7,1828.6,5.80212528]
[1746360065325,3.2078,1828.7,1828.6,21.14380862]
[1746360067530,5.44832691,1828.8,1828.6,22.23746862]
[1746360067730,5.44832691,1828.8,1828.7,19.32800862]
[1746360067937,6.54189691,1828.8,1828.7,19.32800862]
[1746360069839,1.09357,1828.8,1828.7,19.32800862]
[1746360071141,5.89703,1828.9,1828.7,19.32800862]
[1746360071343,5.89703,1828.9,1828.8,4.02022528]
[1746360071642,4.8035,1828.9,1828.8,4.86882528]
[1746360071941,3.2078,1828.9,1828.8,2.4688]
[1746360072131,8.4808715,1829.1,1828.9,1.09345]
[1746360072440,7.9231015,1829.1,1829.0,19.36190862]
[1746360072640,6.8296715,1829.1,1829.0,21.25323862]
[1746360072937,6.8296715,1829.1,1829.0,20.15980862]
[1746360073134,6.8296715,1829.1,1829.0,21.25323862]
[1746360073339,6.8296715,1829.1,1829.0,20.15980862]
[1746360073528,6.8296715,1829.1,1829.0,21.25323862]
[1746360073932,3.6218715,1829.1,1829.0,21.25323862]
[1746360074139,3.6218715,1829.1,1829.0,24.94123862]
[1746360074532,6.54164691,1829.2,1829.0,24.94123862]
[1746360074533,1.09332,1829.2,1829.0,24.94123862]
[1746360074730,4.3011,1829.3,1829.1,20.54566862]
[1746360074935,4.3011,1829.3,1829.2,20.31790862]
[1746360075940,3.2078,1829.3,1829.2,20.31790862]
[1746360076543,4.30105,1829.3,1829.2,20.31790862]
[1746360078041,3.2078,1829.3,1829.2,21.41121862]
[1746360079045,4.30105,1829.3,1829.2,20.31790862]
[1746360081246,3.2078,1829.8,1829.2,32.02570862]
[1746360081442,1.09302,1829.7,1829.6,17.74170862]
[1746360081837,1.09308,1829.6,1829.5,2.5244]
[1746360082037,4.30088,1829.6,1829.5,0.8062]
[1746360082344,4.30088,1829.6,1829.5,18.54790862]
[1746360083148,1.09308,1829.6,1829.5,18.54790862]
[1746360083341,4.30088,1829.6,1829.5,18.54790862]
[1746360083535,3.2078,1829.6,1829.5,19.64104862]
[1746360084751,4.30088,1829.6,1829.5,18.54790862]
[1746360086853,3.2078,1829.6,1829.5,18.54790862]
[1746360087346,3.2078,1829.6,1829.5,19.64104862]
[1746360088344,1.09306,1829.7,1829.5,19.64104862]
[1746360088544,1.09306,1829.7,1829.6,18.53640862]
[1746360088750,4.30086,1829.7,1829.6,18.53640862]
[1746360092459,4.30086,1829.7,1829.6,17.74170862]
[1746360093456,3.2078,1829.7,1829.6,18.54080862]
[1746360094662,3.2078,1829.7,1829.6,19.63388862]
[1746360095263,4.30082,1829.7,1829.6,18.54080862]
[1746360096364,1.09302,1829.7,1829.6,20.25100862]
[1746360098660,1.09302,1829.7,1829.6,19.45190862]
[1746360101471,1.09308,1829.6,1829.5,4.3042]
[1746360101767,6.74858,1829.6,1829.5,19.64588334]
[1746360101966,6.74858,1829.6,1829.5,23.68430862]
[1746360103165,6.74858,1829.6,1829.5,2.4446]
[1746360103374,6.74858,1829.6,1829.4,41.6348]
[1746360103375,1.09314,1829.5,1829.4,40.8]
[1746360103565,1.09325,1829.3,1829.2,3.2675]
[1746360103963,1.09325,1829.3,1829.2,61.80920862]
[1746360104267,1.09325,1829.3,1829.2,21.00920862]
[1746360105063,1.09324,1829.4,1829.2,21.00920862]
[1746360105270,1.09324,1829.4,1829.3,19.31470862]
[1746360105566,1.09324,1829.4,1829.3,1.573]
[1746360108366,2.66304,1829.4,1829.3,1.573]
[1746360110465,2.66304,1829.4,1829.3,3.97302528]
[1746360110665,1.09324,1829.4,1829.3,3.97302528]
[1746360111774,1.09324,1829.4,1829.3,19.31470862]
[1746360113776,1.09319,1829.4,1829.3,19.31470862]
[1746360114978,1.09319,1829.4,1829.3,20.40795862]
[1746360115179,1.09317,1829.5,1829.3,24.09595862]
[1746360115373,1.09317,1829.5,1829.4,1.6616]
[1746360115678,1.09317,1829.5,1829.4,19.40330862]
[1746360120270,4.30092,1829.6,1829.4,19.40330862]
[1746360120470,4.30092,1829.6,1829.5,21.00220862]
[1746360124476,4.30092,1829.6,1829.5,5.66052528]
[1746360124672,4.30092,1829.6,1829.5,4.87162528]
[1746360124880,5.90862,1829.6,1829.5,2.4716]
[1746360127986,5.90862,1829.6,1829.5,1.6619]
[1746360130985,5.91463669,1829.6,1829.5,1.6619]
[1746360131885,1.09319,1829.4,1829.3,0.8679]
[1746360132082,1.09319,1829.4,1829.3,2.5545]
[1746360132287,1.09319,1829.4,1829.3,20.29620862]
[1746360138490,8.44338819,1829.6,1829.3,24.59724862]
[1746360138786,1.09314,1829.5,1829.4,1.7167]
[1746360139181,1.09314,1829.5,1829.4,19.45840862]
[1746360139484,1.09314,1829.5,1829.4,4.11672528]
[1746360139688,1.09314,1829.5,1829.4,19.45840862]
[1746360140078,1.09314,1829.5,1829.4,23.14640862]
[1746360142190,1.09314,1829.5,1829.4,19.45840862]
[1746360145993,1.09314,1829.5,1829.4,20.26260862]
[1746360146289,4.30693669,1829.6,1829.4,21.35579862]
[1746360146494,4.30693669,1829.6,1829.5,19.31610862]
[1746360149297,1.09913669,1829.6,1829.5,19.31610862]
[1746360153601,1.09913669,1829.6,1829.5,20.40924862]
[1746360153792,0.00601669,1829.6,1829.5,23.90424862]
[1746360154192,0.00601669,1829.6,1829.5,27.59224862]
[1746360154398,1.09909669,1829.6,1829.5,27.59224862]
[1746360155295,1.09909669,1829.6,1829.5,26.49910862]
[1746360155500,1.09909669,1829.6,1829.5,27.59224862]
[1746360157600,0.00601669,1829.6,1829.5,27.59224862]
[1746360159202,1.09909669,1829.6,1829.5,26.49910862]
[1746360160106,1.09909669,1829.6,1829.5,22.81110862]
[1746360161206,1.09909669,1829.6,1829.5,23.90424862]
[1746360161608,1.09909669,1829.6,1829.5,22.81110862]
[1746360162601,1.09909669,1829.6,1829.5,3.495]
[1746360162902,1.91069669,1829.6,1829.5,3.495]
[1746360163706,1.09319,1829.4,1829.3,13.06712397]
[1746360163907,1.09319,1829.4,1829.3,27.60103259]
[1746360164408,3.51479,1829.4,1829.3,27.60103259]
[1746360164608,3.51479,1829.4,1829.3,12.25934925]
[1746360164809,3.51479,1829.4,1829.3,27.60103259]
[1746360165011,3.51479,1829.4,1829.3,9.85932397]
[1746360167202,3.51479,1829.4,1829.3,2.5548]
[1746360169104,2.70319,1829.4,1829.3,2.5548]
[1746360169605,3.62788819,1829.6,1829.3,20.29650862]
[1746360169799,1.09319,1829.5,1829.4,20.24240862]
[1746360170203,4.30099,1829.5,1829.4,2.5007]
[1746360170410,1.09319,1829.5,1829.4,2.5007]
[1746360173708,3.62339,1829.5,1829.4,1.6374]
[1746360174312,6.83119,1829.5,1829.4,1.6374]
[1746360176316,3.62339,1829.5,1829.4,1.6374]
[1746360179717,1.09319,1829.4,1829.3,0.8679]
[1746360179914,1.09325,1829.3,1829.2,6.027]
[1746360180116,1.09325,1829.3,1829.2,23.76870862]
[1746360180917,1.09324,1829.4,1829.2,24.86201862]
[1746360181115,0.00601669,1829.6,1829.3,19.38100862]
[1746360181316,1.09319,1829.5,1829.4,20.19210862]
[1746360181513,1.09319,1829.5,1829.4,18.55280862]
[1746360182115,1.09319,1829.5,1829.4,22.24080862]
[1746360183115,1.09319,1829.5,1829.4,18.55280862]
[1746360184116,1.09319,1829.5,1829.4,23.07390862]
[1746360186120,1.09319,1829.5,1829.4,19.38590862]
[1746360187119,1.09319,1829.5,1829.4,23.07390862]
[1746360192824,1.09913669,1829.6,1829.4,24.16708862]
[1746360193115,1.09913669,1829.6,1829.5,17.74170862]
[1746360193311,1.09913669,1829.6,1829.5,20.94950862]
[1746360193516,1.09913669,1829.6,1829.5,17.74170862]
[1746360194126,1.09913669,1829.6,1829.5,21.42970862]
[1746360195822,3.6218715,1829.8,1829.5,33.13050862]
[1746360196025,3.6218715,1829.8,1829.7,18.83472862]
[1746360196420,4.7148315,1829.8,1829.7,20.12420862]
[1746360196718,4.7148315,1829.8,1829.7,21.21722862]
[1746360197024,4.7148315,1829.8,1829.7,20.12420862]
[1746360197219,4.7148315,1829.8,1829.7,21.21722862]
[1746360197924,4.7148315,1829.8,1829.7,20.12420862]
[1746360198425,4.7148315,1829.8,1829.7,21.21722862]
[1746360198828,1.09296,1829.8,1829.7,21.21722862]
[1746360199524,1.09296,1829.8,1829.7,5.87554528]
[1746360199725,1.09296,1829.8,1829.7,21.21722862]
[1746360200826,1.09296,1829.8,1829.7,20.12420862]
[1746360201029,1.09296,1829.8,1829.7,21.21722862]
[1746360201926,1.09294,1829.9,1829.7,21.21722862]
[1746360202118,1.09294,1829.9,1829.8,20.25340862]
[1746360202623,1.09294,1829.9,1829.8,4.91172528]
[1746360202829,1.09294,1829.9,1829.8,20.25340862]
[1746360206133,1.09296,1829.8,1829.7,0.7922]
[1746360206328,1.09302,1829.7,1829.6,1.654]
[1746360206532,1.09302,1829.7,1829.6,19.39570862]
[1746360206829,1.09302,1829.7,1829.6,1.654]
[1746360207630,2.7137,1829.8,1829.6,20.48876862]
[1746360207828,1.093,1829.8,1829.6,18.08874334]
[1746360208129,1.093,1829.8,1829.7,20.20830862]
[1746360209035,1.093,1829.8,1829.7,2.4666]
[1746360210032,1.093,1829.8,1829.7,20.20830862]
[1746360210226,1.09294,1829.9,1829.7,20.20830862]
[1746360210427,1.09294,1829.9,1829.8,20.20610862]
[1746360211432,1.09288,1830.0,1829.8,21.29903862]
[1746360211633,1.09288,1830.0,1829.9,20.17180862]
[1746360212026,1.09288,1830.0,1829.9,2.4301]
[1746360219742,1.09288,1830.0,1829.9,17.77178334]
[1746360219941,3.2078,1830.1,1829.9,17.77178334]
[1746360220147,3.2078,1830.1,1830.0,1.662]
[1746360220635,4.30058,1830.1,1830.0,1.662]
[1746360221443,5.91518,1830.1,1830.0,1.662]
[1746360230653,4.30058,1830.1,1830.0,1.662]
[1746360231755,4.30058,1830.1,1830.0,17.00368334]
[1746360237358,4.30058,1830.1,1830.0,19.40370862]
[1746360239060,1.09278,1830.1,1830.0,19.40370862]
[1746360239262,4.30058,1830.1,1830.0,19.40370862]
[1746360240760,1.09278,1830.1,1830.0,19.40370862]
[1746360242058,1.09276,1830.2,1830.0,20.49650862]
[1746360242263,1.09276,1830.2,1830.1,21.02470862]
[1746360251570,1.09276,1830.2,1830.1,22.11748862]
[1746360252872,4.30056,1830.2,1830.1,21.02470862]
[1746360253170,4.30056,1830.2,1830.1,20.21970862]
[1746360254073,5.09966,1830.2,1830.1,20.21970862]
[1746360256276,1.09278,1830.1,1830.0,3.488]
[1746360256471,2.74908,1830.1,1830.0,5.88802528]
[1746360256970,2.74908,1830.1,1830.0,21.22970862]
[1746360257464,2.74908,1830.1,1830.0,22.91910862]
[1746360257664,2.74908,1830.1,1830.0,19.43110862]
[1746360263375,1.09278,1830.1,1830.0,19.43110862]
[1746360272575,1.09278,1830.1,1830.0,20.52394862]
[1746360274181,1.09278,1830.1,1830.0,24.21194862]
[1746360276274,1.09278,1830.1,1830.0,19.43110862]
[1746360277278,1.09278,1830.1,1830.0,20.52394862]
[1746360278283,1.09278,1830.1,1830.0,19.43110862]
[1746360279586,1.09278,1830.1,1830.0,20.52394862]
[1746360280589,1.09276,1830.2,1830.0,20.52394862]
[1746360280785,1.09276,1830.2,1830.1,20.24580862]
[1746360280979,1.09276,1830.2,1830.1,2.5041]
[1746360282786,6.8296715,1830.4,1830.1,18.93856334]
[1746360282984,1.09269,1830.3,1830.2,20.27690862]
[1746360283182,1.09269,1830.3,1830.2,6.02794528]
[1746360283378,1.09269,1830.3,1830.2,21.36962862]
[1746360283587,1.09269,1830.3,1830.2,20.27690862]
[1746360289491,1.09269,1830.3,1830.2,4.93522528]
[1746360289695,1.09269,1830.3,1830.2,20.27690862]
[1746360300604,1.09263,1830.4,1830.2,21.36962862]
[1746360300797,1.09263,1830.4,1830.3,20.16640862]
[1746360300998,1.09263,1830.4,1830.3,4.82472528]
[1746360302406,1.09263,1830.4,1830.3,20.16640862]
[1746360303911,1.09263,1830.4,1830.3,21.25906862]
[1746360304413,4.30039,1830.5,1830.3,21.25906862]
[1746360304609,4.30039,1830.5,1830.4,19.33920862]
[1746360305911,4.30039,1830.5,1830.4,20.43180862]
[1746360306312,4.30039,1830.5,1830.4,19.33920862]
[1746360312513,1.09259,1830.5,1830.4,19.33920862]
[1746360316917,1.09259,1830.5,1830.4,20.43180862]
[1746360317322,1.09259,1830.5,1830.4,24.11980862]
[1746360318219,1.09259,1830.5,1830.4,23.02720862]
[1746360318818,1.09259,1830.5,1830.4,24.11980862]
[1746360319217,1.09259,1830.5,1830.4,20.43180862]
[1746360320022,1.0926,1830.4,1830.3,0.862]
[1746360320220,4.4366,1830.4,1830.3,0.862]
[1746360322523,1.09277,1830.2,1830.0,14.14432397]
[1746360322720,1.09277,1830.2,1830.1,1.6019]
[1746360322921,1.09277,1830.2,1830.1,19.34360862]
[1746360329613,4.30057,1830.2,1830.1,51.6019]
[1746360329819,5.09777,1830.2,1830.1,51.6019]
[1746360334430,5.09777,1830.2,1830.1,1.6019]
[1746360334628,6.72927,1830.2,1830.1,1.6019]
[1746360336027,3.52147,1830.2,1830.1,1.6019]
[1746360337626,6.72927,1830.2,1830.1,1.6019]
[1746360339225,1.09278,1830.1,1830.0,5.1049]
[1746360339430,2.69198,1830.1,1830.0,9.20842528]
[1746360339726,2.69198,1830.1,1830.0,24.55010862]
[1746360339926,2.69198,1830.1,1830.0,1.7035]
[1746360340120,3.48818,1830.1,1830.0,1.7035]
[1746360343330,3.48818,1830.1,1830.0,2.5655]
[1746360344635,2.69198,1830.1,1830.0,2.5655]
[1746360346337,1.09278,1830.1,1830.0,2.5655]
[1746360352442,4.30058,1830.1,1830.0,2.5655]
[1746360355048,54.30058,1830.1,1830.0,2.5655]
[1746360355743,54.30058,1830.1,1830.0,17.90718334]
[1746360361348,54.30058,1830.1,1830.0,20.30720862]
[1746360365046,56.02678,1830.1,1830.0,20.30720862]
[1746360365351,50.0,1830.1,1830.0,33.08784862]
[1746360366252,50.0,1830.1,1830.0,36.77584862]
[1746360368256,50.0,1830.1,1830.0,50.70036007]
[1746360369551,50.0,1830.1,1830.0,45.70036007]
[1746360371044,50.0,1830.1,1830.0,46.48676007]
[1746360372054,50.0,1830.1,1830.0,32.56224862]
[1746360376459,50.0,1830.1,1830.0,39.86677259]
[1746360377350,50.0,1830.1,1830.0,80.66677259]
[1746360379961,50.0,1830.1,1830.0,73.36224862]
[1746360380148,51.09278,1830.1,1830.0,9.7335]
[1746360380352,59.30058,1830.1,1830.0,4.55]
[1746360381054,57.78048,1830.1,1830.0,4.55]
[1746360381248,52.78048,1830.1,1830.0,2.5845]
[1746360382062,52.78048,1830.1,1830.0,3.67734]
[1746360382759,52.78048,1830.1,1830.0,2.5845]
[1746360384363,52.78048,1830.1,1830.0,0.862]
[1746360384962,55.98828,1830.1,1830.0,0.862]
[1746360385160,37.44001669,1830.1,1830.0,19.69654862]
[1746360385548,37.44001669,1830.1,1830.0,22.23794862]
[1746360386259,37.44001669,1830.1,1830.0,25.92594862]
[1746360395365,37.44001669,1830.1,1830.0,29.13374862]
[1746360396267,37.44001669,1830.1,1830.0,25.92594862]
[1746360396460,37.44001669,1830.1,1830.0,29.13374862]
[1746360399866,37.44001669,1830.1,1830.0,36.43827259]
[1746360406279,37.44001669,1830.1,1830.0,21.09658925]
[1746360409077,37.44001669,1830.1,1830.0,27.70606767]
[1746360411779,37.44001669,1830.1,1830.0,43.04775101]
[1746360412177,37.44001669,1830.1,1830.0,36.43827259]
[1746360412981,37.44001669,1830.1,1830.0,33.23047259]
[1746360413174,37.44001669,1830.1,1830.0,36.43827259]
[1746360416089,37.44001669,1830.1,1830.0,33.23047259]
[1746360416386,37.44001669,1830.1,1830.0,44.18481332]
[1746360416687,37.44001669,1830.1,1830.0,47.39261332]
[1746360417285,39.02301669,1830.1,1830.0,46.55551332]
[1746360420085,39.02301669,1830.1,1830.0,43.34771332]
[1746360420288,39.02301669,1830.1,1830.0,35.60117259]
[1746360422590,1.8388441,1830.0,1829.9,10.95434073]
[1746360422888,3.4830441,1830.0,1829.9,14.16214073]
[1746360423091,3.4830441,1830.0,1829.9,10.95434073]
[1746360423294,3.4830441,1830.0,1829.9,17.85014073]
[1746360423591,3.4830441,1830.0,1829.9,18.94304073]
[1746360428195,3.4830441,1830.0,1829.9,25.40480216]
[1746360431500,3.4830441,1830.0,1829.9,14.45046143]
[1746360434502,3.4830441,1830.0,1829.9,11.24266143]
[1746360439600,3.4830441,1830.0,1829.9,12.88786143]
[1746360440003,3.4830441,1830.0,1829.9,16.09566143]
[1746360440302,1.8388441,1830.0,1829.9,16.09566143]
[1746360442706,1.8388441,1830.0,1829.9,12.88786143]
[1746360442908,1.8388441,1830.0,1829.9,16.09566143]
[1746360443394,1.8388441,1830.0,1829.9,12.88786143]
[1746360443598,1.8388441,1830.0,1829.9,16.09566143]
[1746360443905,1.8388441,1830.0,1829.9,27.05000216]
[1746360444498,1.8388441,1830.0,1829.9,23.84220216]
[1746360447208,1.8388441,1830.0,1829.9,12.88786143]
[1746360458514,1.8388441,1830.0,1829.9,27.42719787]
[1746360464517,1.8388441,1830.0,1829.9,30.63499787]
[1746360466621,1.8388441,1830.0,1829.9,27.42719787]
[1746360466815,1.8388441,1830.0,1829.9,30.63499787]
[1746360473623,1.8388441,1830.0,1829.9,27.42719787]
[1746360473828,1.8388441,1830.0,1829.9,30.63499787]
[1746360474127,1.8388441,1830.0,1829.9,29.33193266]
[1746360476226,1.8388441,1830.0,1829.9,26.12413266]
[1746360476424,1.8388441,1830.0,1829.9,29.33193266]
[1746360481038,1.8388441,1830.0,1829.9,30.70885252]
[1746360484844,1.8388441,1830.0,1829.9,47.52910408]
[1746360486542,1.8388441,1830.0,1829.9,88.32910408]
[1746360487545,1.8388441,1830.0,1829.9,85.12130408]
[1746360487735,1.8388441,1830.0,1829.9,88.32910408]
[1746360489442,0.3562341,1830.0,1829.9,88.32910408]
[1746360489644,4.1e-06,1830.0,1829.9,94.24110408]
[1746360495848,4.1e-06,1830.0,1829.9,76.04393266]
[1746360500448,4.1e-06,1830.0,1829.9,9.1198]
[1746360500853,4.1e-06,1830.0,1829.9,10.2127]
[1746360501149,4.1e-06,1830.0,1829.9,13.9007]
[1746360501547,4.1e-06,1830.0,1829.9,54.7007]
[1746360503454,0.8020041,1830.0,1829.9,54.7007]
[1746360506148,0.8020041,1830.0,1829.9,48.7887]
[1746360507658,0.8020041,1830.0,1829.9,63.38372201]
[1746360512357,0.8020041,1830.0,1829.9,60.17592201]
[1746360512558,0.8020041,1830.0,1829.9,63.38372201]
[1746360513559,0.8020041,1830.0,1829.9,66.85672201]
[1746360513761,0.8020041,1830.0,1829.9,63.38372201]
[1746360514058,5.8020041,1830.0,1829.9,66.85672201]
[1746360514456,5.8020041,1830.0,1829.9,62.29082201]
[1746360514661,10.1026441,1830.0,1829.9,21.75602201]
[1746360514855,9.0098041,1830.0,1829.9,19.14982201]
[1746360515253,9.0098041,1830.0,1829.9,18.06802201]
[1746360516757,9.0098041,1830.0,1829.9,19.16092201]
[1746360517860,9.0098041,1830.0,1829.9,4.5659]
[1746360518265,10.6593041,1830.0,1829.9,4.5659]
[1746360520560,5.6593041,1830.0,1829.9,4.5659]
[1746360523565,5.6593041,1830.0,1829.9,3.473]
[1746360526369,2.4515041,1830.0,1829.9,3.473]
[1746360526669,5.6593041,1830.0,1829.9,3.473]
[1746360526968,6.7521441,1830.0,1829.9,3.473]
[1746360528272,5.6593041,1830.0,1829.9,3.473]
[1746360528571,6.7521441,1830.0,1829.9,3.473]
[1746360539375,4.3006441,1830.0,1829.9,7.0207]
[1746360539575,1.0928441,1830.0,1829.9,7.0207]
[1746360539877,4.1e-06,1830.0,1829.9,7.0207]
[1746360540074,4.1e-06,1830.0,1829.9,10.7087]
[1746360541264,1.0928441,1830.0,1829.9,10.7087]
[1746360541465,4.1e-06,1830.0,1829.9,10.7087]
[1746360542481,1.0928441,1830.0,1829.9,10.7087]
[1746360542677,4.1e-06,1830.0,1829.9,10.7087]
[1746360544266,1.0928441,1830.0,1829.9,10.7087]
[1746360545778,1.0928441,1830.0,1829.9,9.6158]
[1746360546076,1.0928441,1830.0,1829.9,5.9278]
[1746360549670,2.6850441,1830.0,1829.9,5.9278]
[1746360550173,2.6850441,1830.0,1829.9,9.6158]
[1746360551179,2.6850441,1830.0,1829.9,5.9278]
[1746360551579,1.0928441,1830.0,1829.9,5.9278]
[1746360551780,4.1e-06,1830.0,1829.9,7.0207]
[1746360552079,4.1e-06,1830.0,1829.9,10.7087]
[1746360553179,4.1e-06,1830.0,1829.9,7.0207]
[1746360554081,4.1e-06,1830.0,1829.9,10.7087]
[1746360556681,4.1e-06,1830.0,1829.9,11.1434464]
[1746360557282,4.1e-06,1830.0,1829.9,10.7087]
[1746360557979,4.1e-06,1830.0,1829.9,11.14346133]
[1746360558678,4.1e-06,1830.0,1829.9,10.7087]
[1746360561477,4.1e-06,1830.0,1829.9,11.5651]
[1746360561984,4.1e-06,1830.0,1829.9,25.38011523]
[1746360564182,4.1e-06,1830.0,1829.9,20.81421523]
[1746360564382,4.1e-06,1830.0,1829.9,24.28421523]
[1746360564583,1.6560041,1830.0,1829.9,25.37711523]
[1746360565185,1.6560041,1830.0,1829.9,7.8741]
[1746360566587,2.7488441,1830.0,1829.9,7.8741]
[1746360569390,2.7488441,1830.0,1829.9,7.0177]
[1746360570190,1.0929,1829.9,1829.8,41.89294]
[1746360570590,2.7488841,1830.0,1829.8,43.55114]
[1746360570791,2.7488841,1830.0,1829.9,1.0929]
[1746360570990,2.7488841,1830.0,1829.9,2.7511]
[1746360573592,2.7488841,1830.0,1829.9,1.6582]
[1746360574896,3.5434841,1830.0,1829.9,1.6582]
[1746360575397,3.54348,1830.0,1829.9,1.6581959]
[1746360583710,1.0929,1829.9,1829.8,40.8]
[1746360584016,1.09296,1829.8,1829.7,6.716]
[1746360584216,1.93326,1829.8,1829.7,6.716]
[1746360584415,3.53156,1829.8,1829.7,6.716]
[1746360585013,1.09302,1829.7,1829.6,48.07628887]
[1746360585219,5.89912,1829.7,1829.6,7.27628887]
[1746360588125,1.09291,1829.9,1829.8,1.09295]
[1746360588421,11.6656,1830.1,1829.7,2.69518]
[1746360588719,1.09295,1829.9,1829.7,4.29518]
[1746360588921,1.09295,1829.9,1829.8,1.5688]
[1746360589216,4.7148215,1829.9,1829.8,5.2568]
[1746360589422,4.7148215,1829.9,1829.8,6.34976]
[1746360591220,4.7148215,1829.9,1829.8,5.2568]
[1746360593821,1.09295,1829.9,1829.8,5.2568]
[1746360594122,1.09295,1829.9,1829.8,1.5688]
[1746360594420,1.09285,1830.0,1829.8,2.66174]
[1746360594614,1.09285,1830.0,1829.9,1.6996]
[1746360595224,1.09285,1830.0,1829.9,5.3876]
[1746360595617,4.30061,1830.1,1829.9,5.3876]
[1746360595820,4.30061,1830.1,1830.0,3.3058]
[1746360597129,4.30061,1830.1,1830.0,8.08664]
[1746360597319,3.2078,1830.1,1830.0,8.08664]
[1746360600421,4.30058,1830.1,1830.0,6.9938]
[1746360600626,3.2078,1830.1,1830.0,8.08664]
[1746360601519,4.30058,1830.1,1830.0,8.08664]
[1746360601724,4.30058,1830.1,1830.0,11.55464]
[1746360602733,4.30058,1830.1,1830.0,10.4618]
[1746360604532,1.09278,1830.1,1830.0,10.4618]
[1746360604833,4.30058,1830.1,1830.0,10.4618]
[1746360606029,5.88568,1830.1,1830.0,10.4618]
[1746360606629,5.88568,1830.1,1830.0,3.688]
[1746360607129,1.0929,1829.9,1829.8,12.35208887]
[1746360607430,4.3007,1829.9,1829.8,12.35208887]
[1746360608230,4.3007,1829.9,1829.8,16.04008887]
[1746360608423,4.3007,1829.9,1829.8,8.7638]
[1746360609031,4.3007,1829.9,1829.8,7.156]
[1746360609221,1.09296,1829.8,1829.7,7.27628887]
[1746360609425,2.73716,1829.8,1829.7,7.27628887]
[1746360610131,2.73716,1829.8,1829.7,10.96428887]
[1746360611931,2.73716,1829.8,1829.7,3.688]
[1746360612133,1.09302,1829.7,1829.6,3.2872]
[1746360612330,5.91272,1829.7,1829.6,3.2872]
[1746360613833,5.91272,1829.7,1829.6,2.4404]
[1746360622242,1.09308,1829.6,1829.3,3.467]
[1746360622541,4.30094,1829.5,1829.4,2.509]
[1746360623038,5.92014,1829.5,1829.4,2.509]
[1746360623239,5.92014,1829.5,1829.4,6.197]
[1746360623641,5.92014,1829.5,1829.4,6.6183672]
[1746360624143,5.92014,1829.5,1829.4,6.197]
[1746360624941,5.92014,1829.5,1829.4,6.61824587]
[1746360625141,5.92014,1829.5,1829.4,2.93024587]
[1746360625639,5.92014,1829.5,1829.4,2.509]
[1746360628536,5.92014,1829.5,1829.4,2.92995936]
[1746360629037,5.92014,1829.5,1829.4,2.509]
[1746360629741,5.92014,1829.5,1829.4,2.92995568]
[1746360630451,5.92014,1829.5,1829.4,2.509]
[1746360631143,5.92014,1829.5,1829.4,2.92999237]
[1746360631838,5.92014,1829.5,1829.4,2.509]
[1746360632336,2.71234,1829.5,1829.4,2.509]
[1746360632531,2.71234,1829.5,1829.4,2.93008426]
[1746360632736,5.92014,1829.5,1829.4,2.93008426]
[1746360632943,5.92014,1829.5,1829.4,2.509]
[1746360633743,5.92014,1829.5,1829.4,2.93016794]
[1746360634336,5.92014,1829.5,1829.4,2.509]
[1746360635244,5.92014,1829.5,1829.4,2.93028425]
[1746360635744,5.92014,1829.5,1829.4,2.509]
[1746360636142,4.30094,1829.5,1829.4,2.509]
[1746360636548,4.30094,1829.5,1829.4,2.93059738]
[1746360637045,4.30094,1829.5,1829.4,2.509]
[1746360639843,4.30094,1829.5,1829.4,2.9310623]
[1746360640345,4.30094,1829.5,1829.4,2.509]
[1746360641247,4.30094,1829.5,1829.4,2.93113336]
[1746360641635,4.30094,1829.5,1829.4,2.509]
[1746360642649,4.30094,1829.5,1829.4,2.93124553]
[1746360643044,4.30094,1829.5,1829.4,2.509]
[1746360643249,4.30094,1829.5,1829.4,6.197]